[Event "*** Titled Tuesday Blitz"]
[Site "Chess.com"]
[Date "2021.02.16"]
[Round "7"]
[White "KonstantinB_1983"]
[Black "KetiGrant"]
[Result "0-1"]
[WhiteElo "2531"]
[BlackElo "2402"]
[TimeControl "180+1"]
[EndTime "11:17:26 PST"]
[Termination "KetiGrant won by resignation"]

1. d4 {[%clk 0:03:00.9]} 1... Nf6 {[%clk 0:02:59.4]} 2. c4 {[%clk 0:02:59.6]}
2... g6 {[%clk 0:02:59.9]} 3. Nc3 {[%clk 0:02:59.1]} 3... Bg7 {[%clk 0:03:00.8]}
4. e4 {[%clk 0:02:58.3]} 4... d6 {[%clk 0:03:01.3]} 5. Nf3 {[%clk 0:02:58]} 5...
O-O {[%clk 0:03:01.8]} 6. Be2 {[%clk 0:02:58.3]} 6... e5 {[%clk 0:03:01.7]} 7.
O-O {[%clk 0:02:58.5]} 7... Nc6 {[%clk 0:03:01.7]} 8. d5 {[%clk 0:02:58.3]} 8...
Ne7 {[%clk 0:03:02.2]} 9. Ne1 {[%clk 0:02:57.1]} 9... a5 {[%clk 0:03:01.3]} 10.
f3 {[%clk 0:02:56.9]} 10... Nd7 {[%clk 0:03:00.1]} 11. Be3 {[%clk 0:02:55.4]}
11... f5 {[%clk 0:02:59.7]} 12. g4 {[%clk 0:02:55.8]} 12... f4 {[%clk
0:02:37.4]} 13. Bf2 {[%clk 0:02:54.9]} 13... g5 {[%clk 0:02:38.3]} 14. Nd3
{[%clk 0:02:53.2]} 14... c5 {[%clk 0:02:34.6]} 15. a3 {[%clk 0:02:46.6]} 15...
Ng6 {[%clk 0:02:31]} 16. Qd2 {[%clk 0:02:39.7]} 16... b6 {[%clk 0:02:22.6]} 17.
Nb5 {[%clk 0:02:38.9]} 17... Nf6 {[%clk 0:02:19.6]} 18. b4 {[%clk 0:02:29.8]}
18... Bxg4 {[%clk 0:02:17.1]} 19. fxg4 {[%clk 0:02:22.5]} 19... Nxe4 {[%clk
0:02:16.8]} 20. Qc2 {[%clk 0:02:22.8]} 20... Nxf2 {[%clk 0:02:16]} 21. Nxf2
{[%clk 0:02:22.1]} 21... f3 {[%clk 0:02:07.6]} 22. Bd3 {[%clk 0:02:19.2]} 22...
e4 {[%clk 0:01:40.5]} 23. Bxe4 {[%clk 0:02:18.2]} 23... Bxa1 {[%clk 0:01:39.4]}
24. Bxg6 {[%clk 0:02:07.2]} 24... Be5 {[%clk 0:01:30.3]} 25. Bxh7+ {[%clk
0:01:59.4]} 25... Kh8 {[%clk 0:01:30.3]} 26. Bf5 {[%clk 0:01:51.7]} 26... axb4
{[%clk 0:01:25.2]} 27. axb4 {[%clk 0:01:50.2]} 27... Qf6 {[%clk 0:01:24]} 28.
Ne4 {[%clk 0:01:43.5]} 28... Qh6 {[%clk 0:01:23.6]} 29. Nc7 {[%clk 0:01:18]}
29... Ra3 {[%clk 0:01:14.6]} 30. Nb5 {[%clk 0:00:52.4]} 30... Re3 {[%clk
0:01:07.3]} 31. Ng3 {[%clk 0:00:41.1]} 31... Re2 {[%clk 0:01:01.1]} 0-1

[Event "*** Titled Tuesday Blitz"]
[Site "Chess.com"]
[Date "2021.02.16"]
[Round "7"]
[White "anon481216"]
[Black "noamapplesauce"]
[Result "1-0"]
[WhiteElo "2455"]
[BlackElo "2147"]
[TimeControl "180+1"]
[EndTime "11:17:26 PST"]
[Termination "anon481216 won by resignation"]

1. d4 {[%clk 0:03:00.9]} 1... d5 {[%clk 0:02:58.4]} 2. c4 {[%clk 0:03:00.8]}
2... e6 {[%clk 0:02:58.5]} 3. Nf3 {[%clk 0:03:01.1]} 3... Nf6 {[%clk 0:02:58.2]}
4. Nc3 {[%clk 0:03:01.7]} 4... c6 {[%clk 0:02:58.2]} 5. Bg5 {[%clk 0:02:59.6]}
5... h6 {[%clk 0:02:58]} 6. Bh4 {[%clk 0:02:59.5]} 6... dxc4 {[%clk 0:02:57.8]}
7. e4 {[%clk 0:02:58.9]} 7... g5 {[%clk 0:02:56]} 8. Bg3 {[%clk 0:02:59]} 8...
b5 {[%clk 0:02:56.5]} 9. Be2 {[%clk 0:02:58.2]} 9... Bb7 {[%clk 0:02:56.1]} 10.
h4 {[%clk 0:02:53.7]} 10... g4 {[%clk 0:02:55.7]} 11. Ne5 {[%clk 0:02:53.2]}
11... h5 {[%clk 0:02:56.4]} 12. O-O {[%clk 0:02:27.8]} 12... Nbd7 {[%clk
0:02:45.4]} 13. Qc2 {[%clk 0:02:24.6]} 13... Nxe5 {[%clk 0:02:30.2]} 14. Bxe5
{[%clk 0:02:21.1]} 14... Rg8 {[%clk 0:02:27.1]} 15. Rad1 {[%clk 0:02:09.8]}
15... Nd7 {[%clk 0:02:10.3]} 16. Bg3 {[%clk 0:02:07.5]} 16... Be7 {[%clk
0:01:21.5]} 17. d5 {[%clk 0:02:06.6]} 17... exd5 {[%clk 0:01:18.1]} 18. exd5
{[%clk 0:02:06.3]} 18... Bxh4 {[%clk 0:01:14.5]} 19. Qe4+ {[%clk 0:02:03.7]}
19... Kf8 {[%clk 0:01:03.7]} 20. dxc6 {[%clk 0:02:01.9]} 20... Bxg3 {[%clk
0:00:46.4]} 21. cxb7 {[%clk 0:01:31.8]} 21... Bh2+ {[%clk 0:00:19.7]} 22. Kxh2
{[%clk 0:01:26.8]} 22... Rb8 {[%clk 0:00:20.1]} 23. g3 {[%clk 0:01:07.9]} 23...
h4 {[%clk 0:00:18.7]} 24. Qf5 {[%clk 0:01:05]} 24... hxg3+ {[%clk 0:00:18]} 25.
fxg3 {[%clk 0:01:03.6]} 25... Qe7 {[%clk 0:00:15.1]} 26. Rxd7 {[%clk 0:01:00]}
26... Rh8+ {[%clk 0:00:15.3]} 27. Kg2 {[%clk 0:00:58.1]} 1-0

[Event "*** Titled Tuesday Blitz"]
[Site "Chess.com"]
[Date "2021.02.16"]
[Round "7"]
[White "azikom"]
[Black "Ave_Mariia"]
[Result "1-0"]
[WhiteElo "2640"]
[BlackElo "2480"]
[TimeControl "180+1"]
[EndTime "11:17:28 PST"]
[Termination "azikom won by resignation"]

1. d4 {[%clk 0:03:00]} 1... Nf6 {[%clk 0:02:59.9]} 2. Nf3 {[%clk 0:02:59.4]}
2... e6 {[%clk 0:02:59.8]} 3. c4 {[%clk 0:02:59.3]} 3... Bb4+ {[%clk 0:02:54.5]}
4. Nbd2 {[%clk 0:02:58.4]} 4... c5 {[%clk 0:02:43.7]} 5. a3 {[%clk 0:02:56.8]}
5... Bxd2+ {[%clk 0:02:43.8]} 6. Bxd2 {[%clk 0:02:56.5]} 6... O-O {[%clk
0:02:43]} 7. dxc5 {[%clk 0:02:56.4]} 7... Ne4 {[%clk 0:02:30.8]} 8. Bf4 {[%clk
0:02:51.1]} 8... Nc6 {[%clk 0:02:07.8]} 9. e3 {[%clk 0:02:40.6]} 9... f5 {[%clk
0:01:41.3]} 10. Bd6 {[%clk 0:02:38.7]} 10... Nxd6 {[%clk 0:01:29.5]} 11. cxd6
{[%clk 0:02:36.3]} 11... b6 {[%clk 0:01:29.9]} 12. Be2 {[%clk 0:02:35.8]} 12...
Bb7 {[%clk 0:01:29.5]} 13. O-O {[%clk 0:02:36.3]} 13... Qf6 {[%clk 0:01:22.9]}
14. b4 {[%clk 0:02:35.1]} 14... Rac8 {[%clk 0:01:15.5]} 15. Rc1 {[%clk
0:02:24.3]} 15... a5 {[%clk 0:01:08.8]} 16. Qd2 {[%clk 0:02:20.7]} 16... axb4
{[%clk 0:00:59.1]} 17. axb4 {[%clk 0:02:20.3]} 17... e5 {[%clk 0:00:59.5]} 18.
c5 {[%clk 0:02:19.9]} 18... e4 {[%clk 0:00:56.5]} 19. Nd4 {[%clk 0:02:19.4]}
19... Ne5 {[%clk 0:00:52.3]} 20. Rfd1 {[%clk 0:02:13.7]} 20... Qg6 {[%clk
0:00:47.8]} 21. g3 {[%clk 0:02:06.5]} 21... Nf3+ {[%clk 0:00:42.5]} 22. Nxf3
{[%clk 0:02:05.4]} 22... exf3 {[%clk 0:00:42.9]} 23. Bc4+ {[%clk 0:02:03.9]}
23... Kh8 {[%clk 0:00:42.8]} 24. Bf1 {[%clk 0:02:04.4]} 24... bxc5 {[%clk
0:00:30.2]} 25. Rxc5 {[%clk 0:01:59.3]} 25... Qe6 {[%clk 0:00:27.3]} 26. Rc7
{[%clk 0:01:55]} 26... Rxc7 {[%clk 0:00:25.7]} 27. dxc7 {[%clk 0:01:54.7]} 27...
Rc8 {[%clk 0:00:25.6]} 28. Qxd7 {[%clk 0:01:52.1]} 28... Qxd7 {[%clk 0:00:19.3]}
29. Rxd7 {[%clk 0:01:51.4]} 29... Kg8 {[%clk 0:00:19.5]} 30. b5 {[%clk
0:01:50.2]} 30... Kf8 {[%clk 0:00:19.3]} 31. b6 {[%clk 0:01:48.9]} 31... h6
{[%clk 0:00:16.1]} 32. h4 {[%clk 0:01:48.4]} 32... g6 {[%clk 0:00:07.9]} 33. Bb5
{[%clk 0:01:42.1]} 33... Kg8 {[%clk 0:00:05]} 34. Kh2 {[%clk 0:01:34.9]} 34...
Kf8 {[%clk 0:00:05.2]} 35. Bc6 {[%clk 0:01:26.3]} 1-0

[Event "*** Titled Tuesday Blitz"]
[Site "Chess.com"]
[Date "2021.02.16"]
[Round "7"]
[White "Faqade"]
[Black "Nozdrachev_Leonid"]
[Result "1-0"]
[WhiteElo "2686"]
[BlackElo "2529"]
[TimeControl "180+1"]
[EndTime "11:17:29 PST"]
[Termination "Faqade won by resignation"]

1. Nf3 {[%clk 0:02:52.4]} 1... d6 {[%clk 0:02:58.7]} 2. e4 {[%clk 0:02:50.6]}
2... Nf6 {[%clk 0:02:57.2]} 3. Nc3 {[%clk 0:02:50.8]} 3... e5 {[%clk 0:02:56.8]}
4. d4 {[%clk 0:02:50.7]} 4... Nbd7 {[%clk 0:02:56.8]} 5. Bc4 {[%clk 0:02:50]}
5... Be7 {[%clk 0:02:56.2]} 6. g4 {[%clk 0:02:50.2]} 6... g6 {[%clk 0:02:52.9]}
7. Rg1 {[%clk 0:02:48.6]} 7... O-O {[%clk 0:02:47.9]} 8. Bh6 {[%clk 0:02:46.1]}
8... Re8 {[%clk 0:02:47.2]} 9. Bxf7+ {[%clk 0:02:36.2]} 9... Kxf7 {[%clk
0:02:46.1]} 10. Ng5+ {[%clk 0:02:35.7]} 10... Kg8 {[%clk 0:02:45.5]} 11. Ne6
{[%clk 0:02:36.3]} 11... exd4 {[%clk 0:02:44.8]} 12. Nb5 {[%clk 0:02:03.9]}
12... Ne5 {[%clk 0:02:35.9]} 13. Nxd8 {[%clk 0:02:01.9]} 13... Bxg4 {[%clk
0:02:35.3]} 14. Rxg4 {[%clk 0:01:52.6]} 14... Nexg4 {[%clk 0:02:31.9]} 15. Ne6
{[%clk 0:01:46.9]} 15... Nxh6 {[%clk 0:02:28.1]} 16. Nbxc7 {[%clk 0:01:45.6]}
16... Nxe4 {[%clk 0:02:17]} 17. Nxa8 {[%clk 0:01:39.5]} 17... Bh4 {[%clk
0:02:13]} 18. Nac7 {[%clk 0:01:38.1]} 18... Nxf2 {[%clk 0:02:07.9]} 19. Nxe8
{[%clk 0:01:33.5]} 19... Nxd1+ {[%clk 0:02:00.3]} 20. Kxd1 {[%clk 0:01:34.4]}
20... Kf7 {[%clk 0:01:49.7]} 21. N8c7 {[%clk 0:01:33.2]} 21... Ng4 {[%clk
0:01:45.2]} 22. Ke2 {[%clk 0:01:26.8]} 22... Bf6 {[%clk 0:01:33]} 23. h3 {[%clk
0:01:20.4]} 23... Ne3 {[%clk 0:01:31.9]} 24. Nf4 {[%clk 0:01:20.4]} 24... Nxc2
{[%clk 0:01:28.7]} 25. Rc1 {[%clk 0:01:19.5]} 25... Nb4 {[%clk 0:01:12.9]} 26.
Ncd5 {[%clk 0:01:18.7]} 26... d3+ {[%clk 0:01:04.4]} 27. Kd1 {[%clk 0:01:18.4]}
27... Nxd5 {[%clk 0:00:33.1]} 28. Nxd5 {[%clk 0:01:16.4]} 28... Bxb2 {[%clk
0:00:32.8]} 29. Rb1 {[%clk 0:01:16.5]} 29... Be5 {[%clk 0:00:31.9]} 30. Rxb7+
{[%clk 0:01:16.3]} 30... Ke6 {[%clk 0:00:32.2]} 31. Nb4 {[%clk 0:01:16.5]} 31...
h5 {[%clk 0:00:29.4]} 32. Rxa7 {[%clk 0:01:15.4]} 32... Kf5 {[%clk 0:00:28.6]}
33. Nxd3 {[%clk 0:01:14.3]} 33... g5 {[%clk 0:00:27.6]} 34. Nxe5 {[%clk
0:01:13.9]} 34... dxe5 {[%clk 0:00:27.3]} 35. Ke2 {[%clk 0:01:14]} 35... Kf4
{[%clk 0:00:27.4]} 36. Ra3 {[%clk 0:01:08.3]} 36... g4 {[%clk 0:00:23.4]} 37.
hxg4 {[%clk 0:01:08.1]} 37... hxg4 {[%clk 0:00:24.3]} 38. Kf2 {[%clk 0:01:08.3]}
1-0

[Event "*** Titled Tuesday Blitz"]
[Site "Chess.com"]
[Date "2021.02.16"]
[Round "7"]
[White "bennyficial"]
[Black "Hangar-18"]
[Result "0-1"]
[WhiteElo "2212"]
[BlackElo "2376"]
[TimeControl "180+1"]
[EndTime "11:17:32 PST"]
[Termination "Hangar-18 won by resignation"]

1. e4 {[%clk 0:03:00.9]} 1... c6 {[%clk 0:02:56.9]} 2. d4 {[%clk 0:03:00.5]}
2... d5 {[%clk 0:02:57]} 3. exd5 {[%clk 0:03:01]} 3... cxd5 {[%clk 0:02:56.2]}
4. Bd3 {[%clk 0:03:00.8]} 4... Nc6 {[%clk 0:02:55.7]} 5. c3 {[%clk 0:03:01.1]}
5... Qc7 {[%clk 0:02:55.6]} 6. h3 {[%clk 0:03:00.2]} 6... Nf6 {[%clk 0:02:54.5]}
7. Nf3 {[%clk 0:03:00.2]} 7... g6 {[%clk 0:02:54.7]} 8. O-O {[%clk 0:02:59.2]}
8... Bf5 {[%clk 0:02:54.6]} 9. Be2 {[%clk 0:02:51.4]} 9... Bg7 {[%clk
0:02:53.8]} 10. Re1 {[%clk 0:02:52]} 10... O-O {[%clk 0:02:53.4]} 11. Nbd2
{[%clk 0:02:52.1]} 11... a6 {[%clk 0:02:51.7]} 12. Nf1 {[%clk 0:02:50.6]} 12...
Ne4 {[%clk 0:02:49.2]} 13. Nh4 {[%clk 0:02:39.4]} 13... Bc8 {[%clk 0:02:40.4]}
14. Bd3 {[%clk 0:02:32.2]} 14... f5 {[%clk 0:02:36.2]} 15. Nf3 {[%clk
0:02:13.5]} 15... b5 {[%clk 0:02:25.5]} 16. a3 {[%clk 0:01:59]} 16... Rb8 {[%clk
0:02:24.7]} 17. N1d2 {[%clk 0:01:50.9]} 17... Be6 {[%clk 0:02:20]} 18. Qe2
{[%clk 0:01:45.4]} 18... Kh8 {[%clk 0:02:17.3]} 19. Bxe4 {[%clk 0:01:23.2]}
19... dxe4 {[%clk 0:02:05.8]} 20. Ng5 {[%clk 0:01:23.5]} 20... Bg8 {[%clk
0:02:05.5]} 21. Nf1 {[%clk 0:01:22.2]} 21... h6 {[%clk 0:01:44.1]} 22. Nxe4
{[%clk 0:01:22.3]} 22... fxe4 {[%clk 0:01:44.5]} 23. Qxe4 {[%clk 0:01:22.9]}
23... Bh7 {[%clk 0:01:44.1]} 24. Ng3 {[%clk 0:01:17]} 24... Rbe8 {[%clk
0:01:40.5]} 25. Qe6 {[%clk 0:01:13.8]} 25... Qd6 {[%clk 0:01:36.8]} 26. Qe2
{[%clk 0:01:07.1]} 26... e5 {[%clk 0:01:36.5]} 27. Ne4 {[%clk 0:01:04]} 27...
Qd5 {[%clk 0:01:34.1]} 28. c4 {[%clk 0:00:43.8]} 28... bxc4 {[%clk 0:01:28.5]}
29. Nc3 {[%clk 0:00:42.7]} 29... Qxd4 {[%clk 0:01:24.3]} 30. Be3 {[%clk
0:00:43]} 30... Qh4 {[%clk 0:01:19.3]} 31. Rad1 {[%clk 0:00:40.1]} 31... Nd4
{[%clk 0:01:18.1]} 32. Qf1 {[%clk 0:00:34.6]} 32... Nc2 {[%clk 0:01:11.2]} 33.
Re2 {[%clk 0:00:33.1]} 33... Nxe3 {[%clk 0:01:10.9]} 34. Rxe3 {[%clk 0:00:33.2]}
34... g5 {[%clk 0:01:05]} 35. Rd7 {[%clk 0:00:29.6]} 35... Bd3 {[%clk 0:01:04]}
36. Qe1 {[%clk 0:00:29.2]} 36... Qf4 {[%clk 0:01:03.4]} 37. Nd5 {[%clk
0:00:28.2]} 37... Qf5 {[%clk 0:01:02.6]} 38. Ne7 {[%clk 0:00:26.7]} 38... Qxd7
{[%clk 0:00:59.3]} 0-1

[Event "*** Titled Tuesday Blitz"]
[Site "Chess.com"]
[Date "2021.02.16"]
[Round "7"]
[White "Zurability"]
[Black "Bulldog167"]
[Result "1-0"]
[WhiteElo "2639"]
[BlackElo "2872"]
[TimeControl "180+1"]
[EndTime "11:17:34 PST"]
[Termination "Zurability won on time"]

1. Nf3 {[%clk 0:02:59.6]} 1... Nf6 {[%clk 0:02:27.5]} 2. c4 {[%clk 0:02:58.9]}
2... e6 {[%clk 0:02:27.3]} 3. g3 {[%clk 0:02:59]} 3... d5 {[%clk 0:02:27.6]} 4.
Bg2 {[%clk 0:02:59.4]} 4... Be7 {[%clk 0:02:26.4]} 5. O-O {[%clk 0:02:59.7]}
5... O-O {[%clk 0:02:27.1]} 6. b3 {[%clk 0:03:00.3]} 6... c5 {[%clk 0:02:27.2]}
7. e3 {[%clk 0:02:59.8]} 7... Nc6 {[%clk 0:02:27]} 8. cxd5 {[%clk 0:02:54.1]}
8... Nxd5 {[%clk 0:02:19.4]} 9. Bb2 {[%clk 0:02:53.6]} 9... Bf6 {[%clk
0:02:19.2]} 10. Nc3 {[%clk 0:02:53.8]} 10... Nxc3 {[%clk 0:02:18.9]} 11. dxc3
{[%clk 0:02:54]} 11... Qc7 {[%clk 0:02:17.9]} 12. Qe2 {[%clk 0:02:47.7]} 12...
b6 {[%clk 0:02:15.9]} 13. e4 {[%clk 0:02:36.3]} 13... Bb7 {[%clk 0:02:08.1]} 14.
Nd2 {[%clk 0:02:30.4]} 14... Rad8 {[%clk 0:02:07.2]} 15. Rad1 {[%clk 0:02:23.1]}
15... Rd7 {[%clk 0:01:53.3]} 16. f4 {[%clk 0:02:21.1]} 16... Rfd8 {[%clk
0:01:53.2]} 17. e5 {[%clk 0:02:19.9]} 17... Be7 {[%clk 0:01:53.4]} 18. Ne4
{[%clk 0:02:16.4]} 18... Bf8 {[%clk 0:01:13.7]} 19. h4 {[%clk 0:02:02.2]} 19...
Qc8 {[%clk 0:00:58.4]} 20. h5 {[%clk 0:01:57.6]} 20... h6 {[%clk 0:00:57.6]} 21.
g4 {[%clk 0:01:50]} 21... Ba6 {[%clk 0:00:48.7]} 22. c4 {[%clk 0:01:46.1]} 22...
Rxd1 {[%clk 0:00:35.9]} 23. Rxd1 {[%clk 0:01:45.9]} 23... Rxd1+ {[%clk
0:00:36.8]} 24. Qxd1 {[%clk 0:01:46.7]} 24... Qd8 {[%clk 0:00:36.7]} 25. Qf1
{[%clk 0:01:40.2]} 25... Nd4 {[%clk 0:00:34.8]} 26. f5 {[%clk 0:01:40.6]} 26...
Qh4 {[%clk 0:00:24.1]} 27. Bxd4 {[%clk 0:01:29.3]} 27... cxd4 {[%clk 0:00:25]}
28. fxe6 {[%clk 0:01:29.7]} 28... fxe6 {[%clk 0:00:23.6]} 29. Nd6 {[%clk
0:01:30.2]} 29... Bxd6 {[%clk 0:00:09]} 30. exd6 {[%clk 0:01:30.3]} 30... Qd8
{[%clk 0:00:09.5]} 31. Qf4 {[%clk 0:01:29.3]} 31... d3 {[%clk 0:00:10]} 32. Qd4
{[%clk 0:01:25.6]} 32... b5 {[%clk 0:00:06.6]} 33. c5 {[%clk 0:01:18.3]} 33...
e5 {[%clk 0:00:02]} 34. Qxd3 {[%clk 0:01:17.6]} 34... Qf6 {[%clk 0:00:01.1]} 35.
d7 {[%clk 0:01:15.7]} 35... Qd8 {[%clk 0:00:01.1]} 36. c6 {[%clk 0:01:15.7]} 1-0

[Event "*** Titled Tuesday Blitz"]
[Site "Chess.com"]
[Date "2021.02.16"]
[Round "7"]
[White "DenLaz"]
[Black "FairChess_on_YouTube"]
[Result "0-1"]
[WhiteElo "2791"]
[BlackElo "2940"]
[TimeControl "180+1"]
[EndTime "11:17:35 PST"]
[Termination "FairChess_on_YouTube won by resignation"]

1. d4 {[%clk 0:03:00.3]} 1... d5 {[%clk 0:02:58.4]} 2. c4 {[%clk 0:02:58.6]}
2... c6 {[%clk 0:02:58.9]} 3. Nf3 {[%clk 0:02:58.6]} 3... Nf6 {[%clk 0:02:58.7]}
4. Qc2 {[%clk 0:02:59.1]} 4... e6 {[%clk 0:02:57.4]} 5. e3 {[%clk 0:02:56.5]}
5... Be7 {[%clk 0:02:55.4]} 6. Nc3 {[%clk 0:02:48.9]} 6... O-O {[%clk
0:02:54.6]} 7. b3 {[%clk 0:02:48]} 7... b6 {[%clk 0:02:53.7]} 8. Be2 {[%clk
0:02:47.1]} 8... Bb7 {[%clk 0:02:54]} 9. O-O {[%clk 0:02:47.7]} 9... Nbd7 {[%clk
0:02:54.6]} 10. Bb2 {[%clk 0:02:47.7]} 10... Rc8 {[%clk 0:02:54.7]} 11. Rad1
{[%clk 0:02:45.2]} 11... c5 {[%clk 0:02:54.7]} 12. dxc5 {[%clk 0:02:41]} 12...
Nxc5 {[%clk 0:02:52.6]} 13. Qb1 {[%clk 0:02:31.7]} 13... Qc7 {[%clk 0:02:48.8]}
14. cxd5 {[%clk 0:02:27.3]} 14... Nxd5 {[%clk 0:02:47.6]} 15. Nxd5 {[%clk
0:02:21.9]} 15... Bxd5 {[%clk 0:02:48.5]} 16. Qa1 {[%clk 0:02:22.1]} 16... f6
{[%clk 0:02:44.1]} 17. Nd2 {[%clk 0:02:21.3]} 17... Rfd8 {[%clk 0:02:40.9]} 18.
Bf3 {[%clk 0:02:20.5]} 18... Nd3 {[%clk 0:02:32.6]} 19. Bxd5 {[%clk 0:02:08.9]}
19... Rxd5 {[%clk 0:02:33.5]} 20. Nf3 {[%clk 0:02:08.3]} 20... e5 {[%clk
0:02:05]} 21. e4 {[%clk 0:02:06.8]} 21... Rd7 {[%clk 0:01:54.8]} 22. Rd2 {[%clk
0:01:48.2]} 22... Bb4 {[%clk 0:01:50]} 23. Re2 {[%clk 0:01:26.4]} 23... Nf4
{[%clk 0:01:45.2]} 24. Re3 {[%clk 0:01:23.6]} 24... Qc2 {[%clk 0:01:41.9]} 25.
Ne1 {[%clk 0:00:40.1]} 25... Qd1 {[%clk 0:01:07.1]} 26. Nf3 {[%clk 0:00:20.6]}
26... Qxa1 {[%clk 0:01:06.8]} 27. Rxa1 {[%clk 0:00:21.1]} 27... Rc2 {[%clk
0:01:05.5]} 28. Rb1 {[%clk 0:00:14.5]} 28... Rxb2 {[%clk 0:00:54.6]} 29. Rxb2
{[%clk 0:00:14.4]} 29... Rd1+ {[%clk 0:00:55.1]} 30. Ne1 {[%clk 0:00:14.4]}
30... Bxe1 {[%clk 0:00:55.7]} 0-1

[Event "*** Titled Tuesday Blitz"]
[Site "Chess.com"]
[Date "2021.02.16"]
[Round "7"]
[White "Chamal_Gedgafov"]
[Black "dodorox"]
[Result "1-0"]
[WhiteElo "2340"]
[BlackElo "2189"]
[TimeControl "180+1"]
[EndTime "11:17:36 PST"]
[Termination "Chamal_Gedgafov won on time"]

1. d4 {[%clk 0:02:43.5]} 1... Nf6 {[%clk 0:02:59.3]} 2. c4 {[%clk 0:02:42.4]}
2... e6 {[%clk 0:02:59.5]} 3. Nc3 {[%clk 0:02:37.8]} 3... d5 {[%clk 0:02:59.9]}
4. cxd5 {[%clk 0:02:36.9]} 4... exd5 {[%clk 0:02:59.5]} 5. Bg5 {[%clk
0:02:37.1]} 5... Be7 {[%clk 0:02:56.3]} 6. Qc2 {[%clk 0:02:36.8]} 6... c6 {[%clk
0:02:51]} 7. e3 {[%clk 0:02:36.4]} 7... Nbd7 {[%clk 0:02:43.7]} 8. Bd3 {[%clk
0:02:36.4]} 8... h6 {[%clk 0:02:43.7]} 9. Bf4 {[%clk 0:02:35.6]} 9... Nf8 {[%clk
0:02:13.2]} 10. Nf3 {[%clk 0:02:33.9]} 10... Ne6 {[%clk 0:02:06.7]} 11. Bg3
{[%clk 0:02:31.5]} 11... Bd7 {[%clk 0:02:02.6]} 12. Ne5 {[%clk 0:02:30.3]} 12...
Nh5 {[%clk 0:01:48.2]} 13. Bg6 {[%clk 0:02:14.7]} 13... Nxg3 {[%clk 0:01:40]}
14. Bxf7+ {[%clk 0:02:12.5]} 14... Kf8 {[%clk 0:01:32.1]} 15. hxg3 {[%clk
0:02:12]} 15... Bf6 {[%clk 0:01:25.9]} 16. Bxe6 {[%clk 0:02:05]} 16... Bxe6
{[%clk 0:01:17.4]} 17. Ng6+ {[%clk 0:02:04.8]} 17... Kf7 {[%clk 0:01:11]} 18.
Nxh8+ {[%clk 0:02:05.7]} 18... Qxh8 {[%clk 0:01:11]} 19. O-O-O {[%clk 0:02:01]}
19... b5 {[%clk 0:01:04.4]} 20. Kb1 {[%clk 0:01:58.6]} 20... g6 {[%clk 0:00:57]}
21. f3 {[%clk 0:01:49.7]} 21... Kg7 {[%clk 0:00:51]} 22. e4 {[%clk 0:01:47.8]}
22... a6 {[%clk 0:00:38.6]} 23. g4 {[%clk 0:01:37.7]} 23... Qd8 {[%clk
0:00:28.3]} 24. Ne2 {[%clk 0:01:29.7]} 24... dxe4 {[%clk 0:00:21.8]} 25. Qxe4
{[%clk 0:01:13.5]} 25... Bd5 {[%clk 0:00:16]} 26. Qe3 {[%clk 0:01:13.2]} 26...
Qa5 {[%clk 0:00:15.7]} 27. Qxh6+ {[%clk 0:01:08.8]} 27... Kf7 {[%clk 0:00:15.1]}
28. Nc3 {[%clk 0:01:05.2]} 28... Rh8 {[%clk 0:00:06.3]} 29. Qf4 {[%clk 0:01:03]}
1-0

[Event "*** Titled Tuesday Blitz"]
[Site "Chess.com"]
[Date "2021.02.16"]
[Round "7"]
[White "ChessSwole"]
[Black "Aya5ian"]
[Result "1-0"]
[WhiteElo "2534"]
[BlackElo "2311"]
[TimeControl "180+1"]
[EndTime "11:17:38 PST"]
[Termination "ChessSwole won by checkmate"]

1. b3 {[%clk 0:03:00.9]} 1... Nf6 {[%clk 0:02:59.7]} 2. Bb2 {[%clk 0:03:00.5]}
2... e6 {[%clk 0:03:00.2]} 3. e3 {[%clk 0:02:59.5]} 3... d5 {[%clk 0:03:00.4]}
4. f4 {[%clk 0:02:59.2]} 4... c5 {[%clk 0:03:00.6]} 5. Nf3 {[%clk 0:02:59.3]}
5... b5 {[%clk 0:02:57.7]} 6. Bxb5+ {[%clk 0:02:57.1]} 6... Bd7 {[%clk
0:02:58.1]} 7. Bxd7+ {[%clk 0:02:53.5]} 7... Nbxd7 {[%clk 0:02:59]} 8. O-O
{[%clk 0:02:53.7]} 8... Bd6 {[%clk 0:02:57.9]} 9. d3 {[%clk 0:02:51.6]} 9... O-O
{[%clk 0:02:57.1]} 10. Nbd2 {[%clk 0:02:50.5]} 10... Qc7 {[%clk 0:02:48.8]} 11.
a4 {[%clk 0:02:47.8]} 11... a5 {[%clk 0:02:48.2]} 12. Qe1 {[%clk 0:02:45.8]}
12... Rab8 {[%clk 0:02:38.7]} 13. Qh4 {[%clk 0:02:41.7]} 13... h6 {[%clk
0:02:34.7]} 14. Bc3 {[%clk 0:02:33.7]} 14... c4 {[%clk 0:02:24.1]} 15. dxc4
{[%clk 0:02:31.7]} 15... dxc4 {[%clk 0:02:23.9]} 16. Nxc4 {[%clk 0:02:31.2]}
16... Bc5 {[%clk 0:02:17.8]} 17. Bd4 {[%clk 0:02:26.1]} 17... Bb4 {[%clk
0:02:08.4]} 18. Nfe5 {[%clk 0:02:20.2]} 18... Nd5 {[%clk 0:01:59.3]} 19. Qg3
{[%clk 0:02:19]} 19... f6 {[%clk 0:01:47.2]} 20. Ng4 {[%clk 0:02:10.8]} 20...
Kh8 {[%clk 0:01:39.5]} 21. Qh4 {[%clk 0:02:03.7]} 21... Kh7 {[%clk 0:01:14.7]}
22. Rf3 {[%clk 0:01:58.7]} 22... Rfe8 {[%clk 0:01:05.1]} 23. Rh3 {[%clk
0:01:57]} 23... Bf8 {[%clk 0:01:05.1]} 24. Rf1 {[%clk 0:01:44]} 24... N7b6
{[%clk 0:00:57.6]} 25. Nxb6 {[%clk 0:01:40.8]} 25... Rxb6 {[%clk 0:00:58.5]} 26.
c4 {[%clk 0:01:36.8]} 26... Ne7 {[%clk 0:00:30.4]} 27. Bxf6 {[%clk 0:01:20.1]}
27... Nf5 {[%clk 0:00:29.3]} 28. Qh5 {[%clk 0:01:16.2]} 28... g6 {[%clk
0:00:23]} 29. Be5 {[%clk 0:01:15.1]} 29... Qxe5 {[%clk 0:00:19.1]} 30. fxe5
{[%clk 0:01:12.2]} 30... gxh5 {[%clk 0:00:19.3]} 31. Nf6+ {[%clk 0:01:12.9]}
31... Kg6 {[%clk 0:00:17.8]} 32. Nxe8 {[%clk 0:01:13.8]} 32... Be7 {[%clk
0:00:17.5]} 33. e4 {[%clk 0:01:12.1]} 33... Nd4 {[%clk 0:00:15.2]} 34. Rg3+
{[%clk 0:01:12.2]} 34... Kh7 {[%clk 0:00:14.1]} 35. Rf7+ {[%clk 0:01:12.4]}
35... Kh8 {[%clk 0:00:13.3]} 36. Rxe7 {[%clk 0:01:13]} 36... Rxb3 {[%clk
0:00:12.5]} 37. Nf6 {[%clk 0:01:08.4]} 37... Ne2+ {[%clk 0:00:11.8]} 38. Kf2
{[%clk 0:01:08.6]} 38... Nxg3 {[%clk 0:00:12.7]} 39. Rh7# {[%clk 0:01:08.8]} 1-0